bitfinex-derivatives/quotes_BTCF0:USTF0_20250718
["timestamp","ask_amount","ask_price","bid_price","bid_amount"]
[1752824267581,0.8358563,119790.0,119780.0,1.45379231]
[1752824267781,0.66902,119790.0,119780.0,1.45379231]
[1752824267971,0.8358563,119790.0,119780.0,1.45379231]
[1752824269381,0.8358563,119790.0,119780.0,1.0774632]
[1752824269581,0.8358563,119790.0,119780.0,1.26784121]
[1752824270281,0.8358563,119790.0,119780.0,1.36721121]
[1752824270581,0.66902,119790.0,119780.0,1.36721121]
[1752824270780,0.54873,119790.0,119780.0,1.36721121]
[1752824271280,0.54873,119790.0,119780.0,0.9908821]
[1752824271480,0.7155663,119790.0,119780.0,1.36721121]
[1752824271982,0.54873,119790.0,119780.0,1.36721121]
[1752824272281,0.67359,119790.0,119780.0,1.36721121]
[1752824272683,0.54873,119790.0,119780.0,1.36721121]
[1752824272982,0.47826,119790.0,119780.0,1.36721121]
[1752824273177,0.3628,119790.0,119780.0,1.36721121]
[1752824273377,0.48528,119790.0,119780.0,0.9908821]
[1752824273679,0.53328,119790.0,119780.0,1.36669121]
[1752824274779,0.48528,119790.0,119780.0,1.36669121]
[1752824276105,0.53328,119790.0,119780.0,1.36669121]
[1752824277985,0.53328,119790.0,119780.0,0.9903621]
[1752824278185,0.53328,119790.0,119780.0,1.36669121]
[1752824278792,0.53328,119790.0,119780.0,0.9903621]
[1752824278983,0.48528,119790.0,119780.0,1.36669121]
[1752824279180,0.3628,119790.0,119780.0,1.36669121]
[1752824279478,0.55484,119810.0,119790.0,0.21187]
[1752824279792,0.17048,119810.0,119800.0,1.62869062]
[1752824280688,0.12448,119810.0,119800.0,1.62869062]
[1752824281089,0.002,119810.0,119800.0,1.62869062]
[1752824281389,0.55484,119820.0,119810.0,0.2793085]
[1752824281592,0.55484,119820.0,119810.0,0.75500761]
[1752824282189,0.66806,119820.0,119810.0,0.75500761]
[1752824282489,0.8464946,119820.0,119810.0,0.75500761]
[1752824282687,0.8514946,119820.0,119810.0,0.75500761]
[1752824282989,0.6847,119820.0,119810.0,0.75500761]
[1752824283190,0.60449,119820.0,119810.0,0.76345579]
[1752824283585,0.60649,119820.0,119810.0,0.76345579]
[1752824284194,0.60449,119820.0,119810.0,0.76345579]
[1752824284385,0.7722845,119820.0,119810.0,0.76345579]
[1752824284691,0.8494945,119820.0,119810.0,0.69903761]
[1752824284887,0.8494945,119820.0,119810.0,0.9308685]
[1752824285092,0.8494945,119820.0,119810.0,0.69903761]
[1752824285394,0.8494945,119820.0,119810.0,1.26387751]
[1752824285690,0.8494945,119820.0,119810.0,0.42087911]
[1752824285887,0.4857084,119810.0,119800.0,0.49090911]
[1752824286083,0.8465084,119810.0,119800.0,0.11458]
[1752824286288,0.8465084,119810.0,119800.0,0.04663]
[1752824286486,0.8465084,119810.0,119800.0,0.65495]
[1752824286890,0.8465084,119810.0,119800.0,0.61032]
[1752824288095,0.8465084,119810.0,119800.0,0.98664911]
[1752824288791,0.8465084,119810.0,119800.0,0.61032]
[1752824289685,0.8465084,119810.0,119800.0,0.7771423]
[1752824289885,0.8465084,119810.0,119800.0,0.61032]
[1752824290092,0.8465084,119810.0,119800.0,0.00208]
[1752824290494,0.8465084,119810.0,119800.0,0.61152]
[1752824291288,0.8465084,119810.0,119800.0,0.00208]
[1752824291489,0.4857363,119790.0,119780.0,0.3227386]
[1752824291693,1.0405,119790.0,119780.0,1.30846771]
[1752824291890,1.0405,119790.0,119780.0,1.35093771]
[1752824292092,1.0405,119790.0,119780.0,1.36443771]
[1752824292492,1.0405,119790.0,119780.0,0.9881086]
[1752824292690,1.0405,119790.0,119780.0,1.36443771]
[1752824292994,1.0405,119790.0,119780.0,1.36543771]
[1752824293294,1.2073363,119790.0,119780.0,0.9891086]
[1752824293695,1.2073363,119790.0,119780.0,1.37368315]
[1752824293894,1.0405,119790.0,119780.0,1.36743771]
[1752824295894,0.6797,119790.0,119780.0,0.9911086]
[1752824296101,0.6797,119790.0,119780.0,1.36743771]
[1752824297102,0.6797,119790.0,119780.0,0.9911086]
[1752824297301,0.6797,119790.0,119780.0,1.36743771]
[1752824297897,0.53128,119790.0,119780.0,1.36743771]
[1752824298102,0.55484,119790.0,119780.0,1.36743771]
[1752824298298,0.6797,119790.0,119780.0,1.36743771]
[1752824298909,0.8465363,119790.0,119780.0,1.36743771]
[1752824299402,0.6797,119790.0,119780.0,1.36743771]
[1752824299596,0.8465363,119790.0,119780.0,1.36743771]
[1752824299802,0.6797,119790.0,119780.0,1.36743771]
[1752824300498,0.8465363,119790.0,119780.0,0.9911086]
[1752824300798,0.8465363,119790.0,119780.0,1.36743771]
[1752824301104,0.8465363,119790.0,119780.0,0.9911086]
[1752824301304,0.8465363,119790.0,119780.0,1.36743771]
[1752824305803,0.55484,119790.0,119780.0,1.36743771]
[1752824306010,0.16619,119800.0,119790.0,0.3770563]
[1752824306203,0.16619,119800.0,119790.0,1.49051452]
[1752824306409,0.191,119810.0,119800.0,0.2776723]
[1752824306608,0.12003,119810.0,119800.0,1.74014052]
[1752824306809,0.5518,119820.0,119810.0,0.3770284]
[1752824307011,0.6937842,119820.0,119810.0,0.3770284]
[1752824307210,0.8400042,119820.0,119810.0,0.75335751]
[1752824307614,0.8400042,119820.0,119810.0,1.36395751]
[1752824307909,0.8400042,119820.0,119810.0,0.71088751]
[1752824308212,0.8420042,119820.0,119810.0,1.30798751]
[1752824308410,0.8420042,119820.0,119810.0,1.26450751]
[1752824308710,0.8430042,119820.0,119810.0,1.15365511]
[1752824309505,0.8430042,119820.0,119810.0,1.19705511]
[1752824309706,0.8430042,119820.0,119810.0,1.25302511]
[1752824309906,0.59658,119820.0,119810.0,1.25302511]
[1752824310101,0.5548,119820.0,119810.0,1.25302511]
[1752824310907,0.48383,119820.0,119810.0,1.25302511]
[1752824311214,0.6506222,119820.0,119810.0,0.987546]
[1752824311410,0.6967822,119820.0,119810.0,1.36387511]
[1752824311610,0.7215922,119820.0,119810.0,1.36387511]
[1752824312514,0.7332522,119820.0,119810.0,1.36387511]
[1752824313511,0.7215922,119820.0,119810.0,1.36387511]
[1752824313917,0.7215922,119820.0,119810.0,0.987546]
[1752824314116,0.7215922,119820.0,119810.0,1.36387511]
[1752824314619,0.7215922,119820.0,119810.0,0.987546]
[1752824314819,0.7215922,119820.0,119810.0,1.36387511]
[1752824315517,0.7215922,119820.0,119810.0,1.36595511]
[1752824315715,0.16919,119820.0,119810.0,1.36595511]
[1752824316017,0.12303,119820.0,119810.0,1.36595511]
[1752824316716,0.16919,119820.0,119810.0,1.36595511]
[1752824316909,0.5548,119820.0,119810.0,1.36595511]
[1752824319223,0.5548,119820.0,119810.0,0.75543511]
[1752824319522,0.67621,119820.0,119810.0,0.75543511]
[1752824319717,0.8430021,119820.0,119810.0,0.53265911]
[1752824320021,0.8430021,119820.0,119810.0,1.26554511]
[1752824320216,0.67621,119820.0,119810.0,1.36491511]
[1752824320814,0.8430021,119820.0,119810.0,1.36491511]
[1752824321123,0.8430021,119820.0,119810.0,1.26554511]
[1752824321820,0.8430021,119820.0,119810.0,0.65446]
[1752824322020,0.8430021,119820.0,119810.0,0.61156]
[1752824322322,1.21933121,119820.0,119810.0,0.61156]
[1752824322723,1.82873121,119820.0,119810.0,0.00208]
[1752824323225,1.4524021,119820.0,119810.0,0.00208]
[1752824323523,1.95333822,119820.0,119810.0,0.00208]
[1752824323723,0.4544061,119810.0,119800.0,0.6094]
[1752824323922,0.47923,119800.0,119790.0,0.2502386]
[1752824324122,0.84003,119800.0,119790.0,1.19401951]
[1752824325423,0.84003,119800.0,119790.0,1.19489951]
[1752824325824,0.84003,119800.0,119790.0,0.98636911]
[1752824326024,0.84003,119800.0,119790.0,1.15320301]
[1752824326223,0.84003,119800.0,119790.0,0.98636911]
[1752824327526,0.84003,119800.0,119790.0,0.7768739]
[1752824327723,0.84003,119800.0,119790.0,1.15320301]
[1752824327917,0.84003,119800.0,119790.0,0.7768739]
[1752824328122,0.84003,119800.0,119790.0,0.98636911]
[1752824328725,0.84003,119800.0,119790.0,0.37732911]
[1752824328920,0.84003,119800.0,119790.0,0.001]
[1752824329125,0.84003,119800.0,119790.0,0.60868]
[1752824329327,0.84003,119800.0,119790.0,1.15184301]
[1752824329625,0.84003,119800.0,119790.0,1.26346301]
[1752824329924,0.84003,119800.0,119790.0,1.09662911]
[1752824330125,0.84003,119800.0,119790.0,1.26346301]
[1752824330325,0.84003,119800.0,119790.0,1.26246301]
[1752824331525,0.84003,119800.0,119790.0,1.30586301]
[1752824332022,0.84003,119800.0,119790.0,1.32144301]
[1752824332926,0.84003,119800.0,119790.0,0.9451139]
[1752824333126,0.84003,119800.0,119790.0,1.32144301]
[1752824333527,0.84003,119800.0,119790.0,1.30586301]
[1752824334227,0.84003,119800.0,119790.0,1.36391301]
[1752824335428,0.84003,119800.0,119790.0,0.9875839]
[1752824335628,0.84003,119800.0,119790.0,1.36391301]
[1752824336028,0.84003,119800.0,119790.0,0.9875839]
[1752824336225,0.84003,119800.0,119790.0,0.40807911]
[1752824336427,0.84003,119800.0,119790.0,1.26394301]
[1752824336627,0.84003,119800.0,119790.0,1.32292301]
[1752824336829,0.84003,119800.0,119790.0,1.36539301]
[1752824337527,0.84003,119800.0,119790.0,1.32292301]
[1752824338526,0.84116102,119800.0,119790.0,1.36539301]
[1752824339127,0.84116102,119800.0,119790.0,0.9890639]
[1752824339324,0.84116102,119800.0,119790.0,1.36539301]
[1752824339635,0.84116102,119800.0,119790.0,0.9890639]
[1752824339836,0.84116102,119800.0,119790.0,0.75623301]
[1752824340132,0.84116102,119800.0,119790.0,1.36511301]
[1752824341033,0.84116102,119800.0,119790.0,0.9887839]
[1752824341228,0.84116102,119800.0,119790.0,1.36511301]
[1752824342328,0.56459102,119800.0,119790.0,1.74144212]
[1752824342526,0.12116102,119800.0,119790.0,1.74144212]
[1752824342729,0.12116102,119800.0,119790.0,1.13256212]
[1752824342932,0.00113102,119800.0,119790.0,2.10424212]
[1752824343424,0.00113102,119800.0,119790.0,2.10524212]
[1752824343829,0.00113102,119800.0,119790.0,1.74444212]
[1752824344635,0.28202102,119800.0,119790.0,0.75723301]
[1752824344831,0.11520102,119800.0,119790.0,1.36783301]
[1752824345037,0.52421102,119800.0,119790.0,1.36783301]
[1752824345238,0.16341102,119800.0,119790.0,1.36783301]
[1752824345433,0.33023102,119800.0,119790.0,0.75723301]
[1752824345732,0.35402102,119800.0,119790.0,1.36775301]
[1752824345938,0.18720102,119800.0,119790.0,1.36775301]
[1752824346340,0.16341102,119800.0,119790.0,1.36775301]
[1752824347342,0.00113102,119800.0,119790.0,1.74408212]
[1752824347842,0.00113102,119800.0,119790.0,1.74616212]
[1752824348442,0.11520102,119800.0,119790.0,1.74616212]
[1752824349439,0.16341102,119800.0,119790.0,1.74616212]
[1752824350339,0.16341102,119800.0,119790.0,1.36911301]
[1752824350340,0.47915102,119800.0,119790.0,1.36911301]
[1752824350741,0.31233102,119800.0,119790.0,1.36911301]
[1752824351337,0.30047102,119800.0,119790.0,1.36911301]
[1752824351537,0.18720102,119800.0,119790.0,1.36911301]
[1752824352043,0.54800102,119800.0,119790.0,0.75931301]
[1752824352249,0.30047102,119800.0,119790.0,1.36911301]
[1752824352637,0.18720102,119800.0,119790.0,1.36911301]
[1752824353343,0.18720102,119800.0,119790.0,1.74544212]
[1752824353744,0.18720102,119800.0,119790.0,1.36911301]
[1752824354646,0.54800102,119800.0,119790.0,1.36911301]
[1752824354945,0.18720102,119800.0,119790.0,1.36911301]
[1752824355646,0.54800102,119800.0,119790.0,1.36911301]
[1752824356540,0.11520102,119800.0,119790.0,1.36911301]
[1752824356744,0.11520102,119800.0,119790.0,1.74336212]
[1752824356945,0.16341102,119800.0,119790.0,0.9907039]
[1752824357146,0.18720102,119800.0,119790.0,1.36703301]
[1752824357839,0.30047102,119800.0,119790.0,1.36703301]
[1752824358045,0.67313102,119800.0,119790.0,0.9929039]
[1752824358249,0.67313102,119800.0,119790.0,1.36923301]
[1752824359351,0.31233102,119800.0,119790.0,1.36923301]
[1752824360050,0.67313102,119800.0,119790.0,1.36923301]
[1752824360941,0.16341102,119800.0,119790.0,1.36923301]
[1752824361142,0.16341102,119800.0,119790.0,1.74556212]
[1752824361447,0.16341102,119800.0,119790.0,2.10636212]
[1752824361754,0.11627,119810.0,119800.0,0.3816116]
[1752824362049,0.18671,119820.0,119810.0,0.3815977]
[1752824362250,0.18671,119820.0,119810.0,1.36776681]
[1752824362446,0.54751,119820.0,119810.0,1.36776681]
[1752824362644,0.8386437,119820.0,119810.0,1.36776681]
[1752824362846,0.8386437,119820.0,119810.0,0.8899077]
[1752824363149,0.8386437,119820.0,119810.0,1.26623681]
[1752824363545,0.8406437,119820.0,119810.0,1.26623681]
[1752824364747,0.8416437,119820.0,119810.0,1.26623681]
[1752824365448,0.8416437,119820.0,119810.0,1.37615114]
[1752824365651,0.67485,119820.0,119810.0,1.37615114]
[1752824365952,0.67485,119820.0,119810.0,1.37555114]
[1752824366249,0.55051,119820.0,119810.0,1.37555114]
[1752824367050,0.7173038,119820.0,119810.0,1.37555114]
[1752824367450,0.8416438,119820.0,119810.0,1.37555114]
[1752824369251,0.67485,119820.0,119810.0,1.37555114]
[1752824369448,0.8416437,119820.0,119810.0,1.37555114]
[1752824370250,0.8416437,119820.0,119810.0,0.76639114]
[1752824370452,0.8416437,119820.0,119810.0,1.37671114]
[1752824370750,0.67485,119820.0,119810.0,1.37671114]
[1752824371849,0.67485,119820.0,119810.0,1.00038203]
[1752824372046,0.67485,119820.0,119810.0,1.37671114]
[1752824373350,0.8416438,119820.0,119810.0,1.37671114]
[1752824374258,0.8416438,119820.0,119810.0,1.37879114]
[1752824374454,0.67485,119820.0,119810.0,1.37851114]
[1752824378459,0.8416438,119820.0,119810.0,1.37851114]
[1752824379059,0.67485,119820.0,119810.0,1.37851114]
[1752824379258,0.8416438,119820.0,119810.0,1.37851114]
[1752824381665,0.67485,119820.0,119810.0,1.37851114]
[1752824382661,0.67485,119820.0,119810.0,1.00218203]
[1752824382866,0.67485,119820.0,119810.0,1.37851114]
[1752824383068,0.8416439,119820.0,119810.0,1.37851114]
[1752824383369,0.8416439,119820.0,119810.0,1.00218203]
[1752824383568,0.8416439,119820.0,119810.0,1.37851114]
[1752824384267,0.67485,119820.0,119810.0,1.37851114]
[1752824384464,0.67485,119820.0,119810.0,1.00218203]
[1752824384667,0.67485,119820.0,119810.0,1.37851114]
[1752824385571,0.8416439,119820.0,119810.0,1.37851114]
[1752824385870,0.8416439,119820.0,119810.0,0.76847114]
[1752824386171,0.8416439,119820.0,119810.0,1.37639114]
[1752824387172,0.67485,119820.0,119810.0,1.37639114]
[1752824387671,0.8416439,119820.0,119810.0,1.37639114]
[1752824387872,0.8416439,119820.0,119810.0,1.00006203]
[1752824388073,0.8416439,119820.0,119810.0,1.37639114]
[1752824388273,0.67485,119820.0,119810.0,1.37639114]
[1752824389078,0.67485,119820.0,119810.0,1.00006203]
[1752824389278,0.8416439,119820.0,119810.0,1.00006203]
[1752824389471,0.8416439,119820.0,119810.0,1.37639114]
[1752824389669,0.8416439,119820.0,119810.0,0.94201203]
[1752824389872,0.8416439,119820.0,119810.0,1.31834114]
[1752824390678,0.67485,119820.0,119810.0,1.37639114]
[1752824390973,0.67485,119820.0,119810.0,1.00006203]
[1752824391179,0.67485,119820.0,119810.0,1.37639114]
[1752824392382,0.8416439,119820.0,119810.0,1.37639114]
[1752824392880,0.8416439,119820.0,119810.0,0.66702114]
[1752824393082,0.8416439,119820.0,119810.0,1.26751681]
[1752824393283,0.8416439,119820.0,119810.0,0.37840911]
[1752824393580,0.8416439,119820.0,119810.0,1.15453691]
[1752824393779,0.85004155,119820.0,119810.0,1.15453691]
[1752824394581,0.8416439,119820.0,119810.0,1.15453691]
[1752824394882,0.67485,119820.0,119810.0,1.15453691]
[1752824395181,0.8416439,119820.0,119810.0,0.8898178]
[1752824395381,0.8416439,119820.0,119810.0,1.26614691]
[1752824396979,0.8416439,119820.0,119810.0,0.8101778]
[1752824397181,0.8416439,119820.0,119810.0,1.18614691]
[1752824397785,0.8416439,119820.0,119810.0,0.8098178]
[1752824397978,0.8416439,119820.0,119810.0,0.7776078]
[1752824398178,0.8416439,119820.0,119810.0,1.15453691]
[1752824398379,0.8416439,119820.0,119810.0,0.7782078]
[1752824398678,0.85008722,119820.0,119810.0,0.7779278]
[1752824398984,1.35153081,119820.0,119810.0,0.61092]
[1752824399683,1.51845882,119820.0,119810.0,0.61092]
[1752824399880,0.4771117,119800.0,119790.0,0.2085398]
[1752824400187,1.1987117,119800.0,119790.0,0.8186998]
[1752824400484,1.1987117,119800.0,119790.0,1.30687891]
[1752824400684,1.1987117,119800.0,119790.0,1.31531704]
[1752824400982,1.1987117,119800.0,119790.0,1.35871704]
[1752824401384,1.1987117,119800.0,119790.0,0.98238793]
[1752824401775,1.1987117,119800.0,119790.0,1.35871704]
[1752824402085,1.1987117,119800.0,119790.0,1.35027891]
[1752824402281,1.1987117,119800.0,119790.0,1.30787891]
[1752824402586,1.1987117,119800.0,119790.0,0.61452]
[1752824402981,1.1987117,119800.0,119790.0,1.15768481]
[1752824403777,1.1987117,119800.0,119790.0,0.7813557]
[1752824404182,1.1987117,119800.0,119790.0,0.7813556]
[1752824404485,1.1987117,119800.0,119790.0,0.54416471]
[1752824404681,1.1987117,119800.0,119790.0,0.6144]
[1752824405082,2.43427867,119800.0,119790.0,0.001]
[1752824405283,0.4771256,119790.0,119780.0,0.1689295]
[1752824405483,1.21425471,119790.0,119780.0,0.61552]
[1752824405785,0.4532795,119780.0,119770.0,0.2085673]
[1752824405984,0.8379395,119780.0,119770.0,0.54318161]
[1752824406184,0.8379395,119780.0,119770.0,1.15642161]
[1752824406585,0.8379395,119780.0,119770.0,1.18863161]
[1752824406786,0.8379395,119780.0,119770.0,0.8123025]
[1752824406991,0.8379395,119780.0,119770.0,1.18863161]
[1752824407190,0.8379395,119780.0,119770.0,0.8133025]
[1752824407988,0.8379395,119780.0,119770.0,0.7810925]
[1752824408388,0.84641033,119780.0,119770.0,0.7810925]
[1752824408588,0.8379395,119780.0,119770.0,0.7810925]
[1752824408887,0.8379395,119780.0,119770.0,1.15742161]
[1752824409284,0.8379395,119780.0,119770.0,0.7810925]
[1752824409482,0.8379395,119780.0,119770.0,1.15742161]
[1752824409685,0.8379395,119780.0,119770.0,0.7810925]
[1752824410089,0.8379395,119780.0,119770.0,0.8133025]
[1752824410287,0.8379395,119780.0,119770.0,1.18963161]
[1752824410788,0.8379395,119780.0,119770.0,0.8133025]
[1752824411089,0.8379395,119780.0,119770.0,1.18965721]
[1752824411983,0.8379395,119780.0,119770.0,0.8133281]
[1752824412186,0.8379395,119780.0,119770.0,1.18965721]
[1752824413190,0.8379395,119780.0,119770.0,1.26929721]
[1752824414892,0.8379395,119780.0,119770.0,0.8929681]
[1752824415092,0.8379395,119780.0,119770.0,1.26929721]
[1752824415993,1.1987395,119780.0,119770.0,1.15744721]
[1752824416193,1.1987395,119780.0,119770.0,0.72609]
[1752824416385,1.1987395,119780.0,119770.0,1.10241911]
[1752824416591,1.1987395,119780.0,119770.0,0.72609]
[1752824416891,1.1987395,119780.0,119770.0,1.10241911]
[1752824417693,1.1987395,119780.0,119770.0,0.72609]
[1752824418392,1.1987395,119780.0,119770.0,0.001]
[1752824418596,1.1987395,119780.0,119740.0,1.23989911]
[1752824418597,0.5317955,119750.0,119740.0,1.23989911]
[1752824418898,0.9343249,119750.0,119740.0,1.23989911]
[1752824419095,0.9343249,119750.0,119740.0,1.19649911]
[1752824419496,0.9343249,119750.0,119740.0,1.20473468]
[1752824419796,0.9343249,119750.0,119740.0,1.19649911]
[1752824421499,0.9343249,119750.0,119740.0,1.20502076]
[1752824421693,0.9343249,119750.0,119740.0,0.16692]
[1752824421895,0.48418,119740.0,119730.0,0.99960911]
[1752824422199,0.84498,119740.0,119730.0,1.16654301]
[1752824422493,0.84498,119740.0,119730.0,1.00585948]
[1752824423298,0.84498,119740.0,119730.0,1.00881948]
[1752824423694,0.84498,119740.0,119730.0,0.79942427]
[1752824423894,0.84498,119740.0,119730.0,1.00048911]
[1752824424096,0.84498,119740.0,119730.0,0.62416]
[1752824424295,0.84498,119740.0,119730.0,0.37932911]
[1752824424694,0.84498,119740.0,119730.0,0.99968911]
[1752824425097,0.84498,119740.0,119730.0,0.54626301]
[1752824425299,0.84498,119740.0,119730.0,1.16654301]
[1752824426307,0.84498,119740.0,119730.0,1.32086301]
[1752824426603,0.84498,119740.0,119730.0,1.32897538]
[1752824426798,0.2095,119740.0,119730.0,1.38702538]
[1752824427104,0.55253689,119750.0,119740.0,0.37929]
[1752824427304,0.55253689,119750.0,119740.0,0.75561911]
[1752824427506,0.60162689,119750.0,119740.0,0.75561911]
[1752824427703,0.62527689,119750.0,119740.0,0.75561911]
[1752824428103,0.79218299,119750.0,119740.0,1.37585911]
[1752824428303,0.62527689,119750.0,119740.0,1.37585911]
[1752824428504,0.80416299,119750.0,119740.0,1.37585911]
[1752824428805,0.80416299,119750.0,119740.0,0.99953]
[1752824428806,0.63725689,119750.0,119740.0,0.99953]
[1752824429196,0.80416299,119750.0,119740.0,0.99953]
[1752824429506,0.91192299,119750.0,119740.0,1.37585911]
[1752824429907,0.91192299,119750.0,119740.0,0.99953]
[1752824430206,0.91192299,119750.0,119740.0,1.37585911]
[1752824431508,0.74501689,119750.0,119740.0,1.37585911]
[1752824431703,0.91192299,119750.0,119740.0,1.37585911]
[1752824432806,0.3608,119760.0,119750.0,0.3792761]
[1752824433001,0.7251992,119770.0,119760.0,0.1668921]
[1752824433204,0.5703,119770.0,119760.0,1.75308032]
[1752824433507,0.64558,119770.0,119760.0,1.75308032]
[1752824434104,0.28478,119770.0,119760.0,1.75308032]
[1752824434300,0.43354,119780.0,119770.0,0.2658282]
[1752824434505,0.53467,119780.0,119770.0,0.75557731]
[1752824434804,0.12478,119780.0,119770.0,0.75557731]
[1752824435602,0.12478,119780.0,119770.0,0.3792482]
[1752824435909,0.17387,119780.0,119770.0,0.75557731]
[1752824436108,0.17387,119780.0,119770.0,0.3802482]
[1752824436300,0.17387,119780.0,119770.0,0.75657731]
[1752824436301,0.12478,119780.0,119770.0,0.75657731]
[1752824436500,0.55832,119790.0,119780.0,0.3636543]
[1752824436707,0.5703,119790.0,119780.0,1.38552404]
[1752824437009,0.7371504,119790.0,119780.0,1.38552404]
[1752824437210,0.8449104,119790.0,119780.0,1.00919493]
[1752824437410,0.8449104,119790.0,119780.0,1.38552404]
[1752824438109,0.69744978,119790.0,119780.0,1.38552404]
[1752824439910,0.86430018,119790.0,119780.0,1.38736404]
[1752824440113,0.69744978,119790.0,119780.0,1.38784404]
[1752824440519,0.69744978,119790.0,119780.0,1.37940341]
[1752824440520,0.86430018,119790.0,119780.0,1.37940341]
[1752824440813,0.69744978,119790.0,119780.0,1.34531417]
[1752824441008,0.86430018,119790.0,119780.0,1.34531417]
[1752824441204,0.86430018,119790.0,119780.0,0.71309341]
[1752824441513,0.86430018,119790.0,119780.0,1.33689341]
[1752824442109,0.69744978,119790.0,119780.0,1.33689341]
[1752824442309,0.86430018,119790.0,119780.0,1.33689341]
[1752824442512,0.86430018,119790.0,119780.0,1.27779341]
[1752824442712,0.86430018,119790.0,119780.0,0.65468]
[1752824442914,0.4841243,119780.0,119770.0,0.2106639]
[1752824443111,0.86431408,119780.0,119770.0,0.8342639]
[1752824443309,0.86431408,119780.0,119770.0,0.2085839]
[1752824443622,0.4841382,119770.0,119760.0,1.3216855]
[1752824443818,0.86432798,119770.0,119760.0,1.9451255]
[1752824444006,0.86432798,119770.0,119760.0,2.32145461]
[1752824444418,0.86432798,119770.0,119760.0,2.32353461]
[1752824444711,0.86432798,119770.0,119760.0,2.32409461]
[1752824444917,0.69744978,119770.0,119760.0,2.40996461]
[1752824445112,0.69744978,119770.0,119760.0,2.42554461]
[1752824445416,0.86432808,119770.0,119760.0,2.42654461]
[1752824445718,0.69744978,119770.0,119760.0,2.42854461]
[1752824446519,0.69744978,119770.0,119760.0,2.42762461]
[1752824446817,0.50496978,119770.0,119760.0,2.80395372]
[1752824447318,0.01938978,119770.0,119760.0,2.80395372]
[1752824447817,0.14416978,119770.0,119760.0,2.80395372]
[1752824448816,0.19086978,119770.0,119760.0,2.80395372]
[1752824449518,0.55166978,119770.0,119760.0,2.80395372]
[1752824449918,0.69781978,119770.0,119760.0,1.9488055]
[1752824450117,0.69781978,119770.0,119760.0,2.32513461]
[1752824450417,0.86469798,119770.0,119760.0,1.70309461]
[1752824450716,0.69781978,119770.0,119760.0,2.80303372]
[1752824450919,0.61691978,119770.0,119760.0,2.80303372]
[1752824451120,0.50496978,119770.0,119760.0,2.80303372]
[1752824451618,0.55166978,119770.0,119760.0,2.80303372]
[1752824452417,0.69781978,119770.0,119760.0,2.18087372]
[1752824452617,0.69781978,119770.0,119760.0,2.42706461]
[1752824453119,0.69781978,119770.0,119760.0,2.0507355]
[1752824453414,0.86469798,119770.0,119760.0,2.32561461]
[1752824453620,0.86469798,119770.0,119760.0,2.32637461]
[1752824454122,0.86469798,119770.0,119760.0,1.70309461]
[1752824454322,0.86469798,119770.0,119760.0,2.32693461]
[1752824454717,0.86469798,119770.0,119760.0,1.74649461]
[1752824454718,0.69781978,119770.0,119760.0,1.74649461]
[1752824454918,0.86469808,119770.0,119760.0,2.36797461]
[1752824455120,0.69781978,119770.0,119760.0,2.42602461]
[1752824455321,0.58660978,119770.0,119760.0,2.80235372]
[1752824455522,0.19086978,119770.0,119760.0,2.80235372]
[1752824455718,0.14416978,119770.0,119760.0,2.80235372]
[1752824456518,0.55304,119780.0,119770.0,0.2774783]
[1752824456719,0.55304,119780.0,119770.0,0.75525741]
[1752824456915,0.55304,119780.0,119770.0,0.81992905]
[1752824457823,0.55304,119780.0,119770.0,0.82200905]
[1752824458426,0.8433144,119780.0,119770.0,0.77953905]
[1752824458625,0.67645,119780.0,119770.0,0.76395905]
[1752824458819,0.8433144,119780.0,119770.0,0.76395905]
[1752824459128,0.86220215,119780.0,119770.0,0.9022783]
[1752824459520,0.69533775,119780.0,119770.0,0.9022783]
[1752824459721,0.67645,119780.0,119770.0,0.9022783]
[1752824459923,0.67645,119780.0,119770.0,1.38667905]
[1752824460124,0.67645,119780.0,119770.0,0.82200905]
[1752824460320,0.8433144,119780.0,119770.0,1.38667905]
[1752824460516,0.8433144,119780.0,119770.0,0.9022783]
[1752824460716,0.8433144,119780.0,119770.0,0.2795583]
[1752824460922,0.86219498,119780.0,119770.0,0.1689583]
[1752824461221,0.86219498,119780.0,119770.0,0.7913583]
[1752824461621,1.41319573,119780.0,119770.0,0.00208]
[1752824461818,1.58017173,119780.0,119770.0,0.00208]
[1752824462022,1.58017173,119780.0,119770.0,0.7926383]
[1752824462728,1.58117173,119780.0,119770.0,0.1689583]
[1752824463030,1.14017098,119780.0,119770.0,0.1689583]
[1752824464728,0.97319498,119780.0,119770.0,0.1689583]
[1752824474232,1.04101852,119780.0,119770.0,0.1689583]
[1752824475443,1.04101852,119780.0,119770.0,0.00208]
[1752824476339,1.04101852,119780.0,119770.0,0.1689584]
[1752824476544,1.04101852,119780.0,119770.0,0.00208]
[1752824477240,1.04101852,119780.0,119770.0,0.1689584]
[1752824478048,1.04101852,119780.0,119770.0,0.00208]
[1752824478246,1.41754068,119780.0,119770.0,0.00208]
[1752824478646,1.41754068,119780.0,119770.0,0.1689584]
[1752824479247,1.04101852,119780.0,119770.0,0.1689584]
[1752824479945,1.41754068,119780.0,119770.0,0.1689584]
[1752824480344,1.04101852,119780.0,119770.0,0.1689584]
[1752824482042,1.41754068,119780.0,119770.0,0.1689584]
[1752824482245,1.04101852,119780.0,119770.0,0.1689584]
[1752824485753,0.87415412,119780.0,119770.0,0.70104056]
[1752824485958,0.76415412,119780.0,119770.0,0.3825684]
[1752824486153,0.76415412,119780.0,119770.0,0.75909056]
[1752824486360,0.76415412,119780.0,119770.0,0.3825684]
[1752824486558,0.76415412,119780.0,119770.0,0.70104056]
[1752824490151,0.76415412,119780.0,119770.0,0.3245184]
[1752824490463,0.76415412,119780.0,119770.0,0.70104056]
[1752824492360,0.76415412,119780.0,119770.0,1.32020056]
[1752824493154,0.76415412,119780.0,119770.0,1.33578056]
[1752824493360,0.76415412,119780.0,119770.0,1.37825056]
[1752824493666,0.67745,119780.0,119770.0,1.37825056]
[1752824494159,0.31665,119780.0,119770.0,1.37825056]
[1752824494661,0.67745,119780.0,119770.0,1.37825056]
[1752824494860,0.69556082,119780.0,119770.0,0.75909056]
[1752824495061,0.69556082,119780.0,119770.0,1.37717056]
[1752824495258,0.33476082,119780.0,119770.0,1.37717056]
[1752824495461,0.31665,119780.0,119770.0,1.37717056]
[1752824495662,0.33475965,119780.0,119770.0,1.37717056]
[1752824495862,0.31665,119780.0,119770.0,1.0006484]
[1752824496057,0.31665,119780.0,119770.0,0.75909056]
[1752824496260,0.31665,119780.0,119770.0,1.37665056]
[1752824496568,0.19324,119780.0,119770.0,1.37665056]
[1752824496770,0.1238,119780.0,119770.0,1.37665056]
[1752824497064,0.3608,119800.0,119770.0,1.37665056]
[1752824497065,0.3608,119800.0,119780.0,0.2979]
[1752824497270,0.43082,119800.0,119790.0,1.33224276]
[1752824498368,0.43082,119800.0,119790.0,1.0819506]
[1752824498670,0.4746,119800.0,119790.0,1.46055276]